bitfinex-derivatives/quotes_BTCF0:USTF0_20250809
["timestamp","ask_amount","ask_price","bid_price","bid_amount"]
[1754746586331,0.2911013,116960.0,116950.0,1.93973892]
[1754746588628,0.2279013,116960.0,116950.0,1.93973892]
[1754746588831,0.1954513,116960.0,116950.0,1.93973892]
[1754746590336,0.1954513,116960.0,116950.0,2.27138108]
[1754746593738,0.1714813,116960.0,116950.0,2.27138108]
[1754746594039,0.1954513,116960.0,116950.0,2.27138108]
[1754746594741,0.1954513,116960.0,116950.0,1.93973892]
[1754746595132,0.2691713,116960.0,116950.0,2.0474757]
[1754746595644,0.2907313,116960.0,116950.0,2.0474757]
[1754746598142,0.2907313,116960.0,116950.0,1.93973892]
[1754746598543,0.2907313,116960.0,116950.0,2.04747434]
[1754746599342,0.2907313,116960.0,116950.0,1.93973892]
[1754746600038,0.2907313,116960.0,116950.0,2.0936486]
[1754746600638,0.2907313,116960.0,116950.0,1.2684886]
[1754746600937,0.2907313,116960.0,116950.0,2.0912886]
[1754746601335,0.2907313,116960.0,116950.0,2.0907686]
[1754746601936,0.2907313,116960.0,116950.0,2.0887686]
[1754746602245,0.2917313,116960.0,116950.0,2.0867686]
[1754746602442,0.2917313,116960.0,116950.0,1.84760432]
[1754746602638,0.2917313,116960.0,116950.0,0.69344216]
[1754746602838,0.2917313,116960.0,116950.0,1.51576216]
[1754746603150,0.2917313,116960.0,116950.0,2.04063617]
[1754746603937,0.2917313,116960.0,116950.0,1.93289942]
[1754746604138,0.2426813,116960.0,116950.0,1.93289942]
[1754746604348,0.1964513,116960.0,116950.0,2.3721745]
[1754746604843,0.1964513,116960.0,116950.0,2.41845126]
[1754746605545,0.1964513,116960.0,116950.0,2.0868091]
[1754746606440,0.1964513,116960.0,116950.0,1.93289942]
[1754746610449,0.1964513,116960.0,116950.0,2.04052419]
[1754746610951,0.2918613,116960.0,116950.0,2.04052419]
[1754746611749,0.2063677,116960.0,116950.0,2.04052419]
[1754746612045,0.12138,116960.0,116950.0,2.04052419]
[1754746612551,0.12138,116960.0,116950.0,1.93289942]
[1754746612849,0.02597,116960.0,116950.0,1.93289942]
[1754746613244,0.002,116960.0,116950.0,2.26454158]
[1754746613751,0.02648,116960.0,116950.0,2.26454158]
[1754746614051,0.02648,116960.0,116950.0,2.41845126]
[1754746614444,0.02648,116960.0,116950.0,2.0868091]
[1754746614646,0.02648,116960.0,116950.0,1.93289942]
[1754746615046,0.002,116960.0,116950.0,2.26454158]
[1754746615247,0.02648,116960.0,116950.0,2.26454158]
[1754746616254,0.02648,116960.0,116950.0,2.37216484]
[1754746616656,0.02648,116960.0,116950.0,2.26454158]
[1754746621757,0.2247163,116970.0,116950.0,2.43552688]
[1754746621758,0.0047,116970.0,116950.0,2.43552688]
[1754746621956,0.02918,116970.0,116960.0,1.54883449]
[1754746622156,0.02918,116970.0,116960.0,1.56628114]
[1754746622349,0.02448,116980.0,116960.0,2.068894]
[1754746622550,0.02448,116980.0,116970.0,2.25988698]
[1754746622750,0.09541,116990.0,116980.0,0.1246732]
[1754746623052,0.09941,116990.0,116980.0,1.58799816]
[1754746623262,0.1848759,116990.0,116980.0,1.58799816]
[1754746624762,0.2093559,116990.0,116980.0,1.0350036]
[1754746625259,0.2143559,116990.0,116980.0,1.0350036]
[1754746625448,0.2143559,116990.0,116980.0,0.59307168]
[1754746625650,0.2143559,116990.0,116980.0,1.0350036]
[1754746626855,0.2143559,116990.0,116980.0,0.95387168]
[1754746627158,0.2153559,116990.0,116980.0,1.3978036]
[1754746627357,0.2103559,116990.0,116980.0,1.3978036]
[1754746628362,0.2103559,116990.0,116980.0,0.95587168]
[1754746628662,0.2103559,116990.0,116980.0,1.3978036]
[1754746630764,0.005,116990.0,116980.0,1.41538094]
[1754746631153,0.005,116990.0,116980.0,0.97344902]
[1754746631353,0.005,116990.0,116980.0,1.41538094]
[1754746633950,0.005,116990.0,116980.0,1.55728094]
[1754746634154,0.005,116990.0,116980.0,1.41538094]
[1754746634354,0.02931,116990.0,116980.0,1.41538094]
[1754746634961,0.005,116990.0,116980.0,1.41538094]
[1754746635760,0.1465258,116990.0,116980.0,1.41538094]
[1754746635961,0.2085958,116990.0,116980.0,1.30778246]
[1754746639267,0.12313,116990.0,116980.0,1.30778246]
[1754746639465,0.06106,116990.0,116980.0,1.30778246]
[1754746640064,0.06106,116990.0,116980.0,0.58618246]
[1754746640267,0.03855,116990.0,116980.0,1.30778246]
[1754746640757,0.005,116990.0,116980.0,1.30778246]
[1754746642168,0.203582,117010.0,117000.0,0.1244388]
[1754746642468,0.156522,117010.0,117000.0,2.29087964]
[1754746642858,0.1565216,117010.0,117000.0,2.29087964]
[1754746643164,0.39670396,117020.0,117000.0,2.43792254]
[1754746643368,0.48308396,117020.0,117010.0,0.92716352]
[1754746643865,0.48308396,117020.0,117010.0,0.4852316]
[1754746644065,0.48308396,117020.0,117010.0,0.92716352]
[1754746644562,0.48608396,117020.0,117010.0,0.92816352]
[1754746644768,0.48608396,117020.0,117010.0,0.94747978]
[1754746645267,0.48308396,117020.0,117010.0,0.94647978]
[1754746645464,0.48408396,117020.0,117010.0,0.94847978]
[1754746651368,0.48408396,117020.0,117010.0,0.92460978]
[1754746653771,0.48408396,117020.0,117010.0,0.94847978]
[1754746654669,0.48408396,117020.0,117010.0,0.50654786]
[1754746654864,0.48408396,117020.0,117010.0,1.16928384]
[1754746655670,1.50761994,117020.0,117010.0,0.002]
[1754746655870,1.50761994,117020.0,117010.0,0.81748]
[1754746656269,1.50761994,117020.0,117010.0,1.14884799]
[1754746656569,1.17625195,117020.0,117010.0,0.81748]
[1754746656765,1.45776597,117020.0,117010.0,0.002]
[1754746657073,1.45776597,117020.0,117010.0,0.78216]
[1754746658667,0.1330819,117010.0,117000.0,0.441962]
[1754746658859,0.2066719,117010.0,117000.0,1.289262]
[1754746659875,0.2076719,117010.0,117000.0,1.291262]
[1754746660868,0.2076719,117010.0,117000.0,1.289262]
[1754746661065,0.2086719,117010.0,117000.0,1.289262]
[1754746661561,0.2086719,117010.0,117000.0,1.291262]
[1754746662068,0.2106719,117010.0,117000.0,1.289262]
[1754746665071,0.2106719,117010.0,117000.0,1.313512]
[1754746665768,0.2106719,117010.0,117000.0,1.3989712]
[1754746668367,0.2106719,117010.0,117000.0,1.7597712]
[1754746669072,0.2106719,117010.0,117000.0,1.3989712]
[1754746669475,0.0894519,117010.0,117000.0,1.7597712]
[1754746669774,0.1132819,117010.0,117000.0,1.7597712]
[1754746669960,0.0894519,117010.0,117000.0,2.2017332]
[1754746671574,0.0894519,117010.0,117000.0,2.3091502]
[1754746676478,0.1132819,117010.0,117000.0,1.8671882]
[1754746678076,0.1132819,117010.0,117000.0,1.7597712]
[1754746681372,0.1132819,117010.0,117000.0,1.8671882]
[1754746682878,0.1132819,117010.0,117000.0,1.7597712]
[1754746683481,0.1132819,117010.0,117000.0,2.2017332]
[1754746684682,0.1132819,117010.0,117000.0,1.3178092]
[1754746684872,0.2106719,117010.0,117000.0,1.7597713]
[1754746685068,0.2106719,117010.0,117000.0,1.8671883]
[1754746685875,0.1223019,117010.0,117000.0,0.563077]
[1754746686085,0.2081119,117010.0,117000.0,1.454039]
[1754746686685,0.2081119,117010.0,117000.0,0.90466]
[1754746686886,0.2081119,117010.0,117000.0,1.346622]
[1754746687179,0.2081119,117010.0,117000.0,0.88029]
[1754746688282,0.2081119,117010.0,117000.0,1.346482]
[1754746692484,0.2081119,117010.0,117000.0,0.90452]
[1754746692782,0.5689119,117010.0,117000.0,1.453899]
[1754746692983,0.5689119,117010.0,117000.0,1.346482]
[1754746693880,0.2081119,117010.0,117000.0,1.346482]
[1754746694085,0.5689119,117010.0,117000.0,1.346482]
[1754746694290,0.5689119,117010.0,117000.0,1.453899]
[1754746694987,0.2081119,117010.0,117000.0,1.453899]
[1754746695379,0.5689119,117010.0,117000.0,1.453899]
[1754746695682,0.2081119,117010.0,117000.0,1.011937]
[1754746695880,0.5689119,117010.0,117000.0,1.453899]
[1754746696080,0.2081119,117010.0,117000.0,1.453899]
[1754746696475,0.5689119,117010.0,117000.0,1.453899]
[1754746699191,0.2081119,117010.0,117000.0,1.453899]
[1754746701686,0.1600619,117010.0,117000.0,1.5393583]
[1754746701891,0.1223019,117010.0,117000.0,1.9001583]
[1754746702190,0.0894519,117010.0,117000.0,2.3421203]
[1754746702795,0.0894519,117010.0,117000.0,2.45228905]
[1754746703283,0.0894519,117010.0,117000.0,2.1209248]
[1754746703784,0.0894519,117010.0,117000.0,1.4581963]
[1754746704086,0.0894519,117010.0,117000.0,2.1209248]
[1754746704684,0.0894519,117010.0,117000.0,1.90006929]
[1754746706290,0.1124619,117010.0,117000.0,1.90006929]
[1754746707292,0.1124619,117010.0,117000.0,1.45380999]
[1754746707489,0.1124619,117010.0,117000.0,1.53926929]
[1754746708084,0.1124619,117010.0,117000.0,1.45380999]
[1754746708285,0.1124619,117010.0,117000.0,1.34639299]
[1754746708491,0.1124619,117010.0,117000.0,1.43185229]
[1754746709182,0.0894519,117010.0,117000.0,1.34639299]
[1754746709387,0.2079619,117010.0,117000.0,1.34639299]
[1754746709588,0.1734619,117010.0,117000.0,0.53671299]
[1754746709891,0.2079619,117010.0,117000.0,0.90292]
[1754746710287,0.2079619,117010.0,117000.0,1.34479299]
[1754746710587,0.5687619,117010.0,117000.0,1.34479299]
[1754746710994,0.5687619,117010.0,117000.0,0.90292]
[1754746711194,0.5687619,117010.0,117000.0,1.34479299]
[1754746711493,0.2079619,117010.0,117000.0,1.34479299]
[1754746711886,0.5687619,117010.0,117000.0,1.34479299]
[1754746714282,0.5687619,117010.0,117000.0,1.010337]
[1754746714490,0.5687619,117010.0,117000.0,0.986027]
[1754746714689,0.5687619,117010.0,117000.0,1.010257]
[1754746715595,0.5687619,117010.0,117000.0,1.45212999]
[1754746715997,0.2079619,117010.0,117000.0,1.45212999]
[1754746716190,0.5687619,117010.0,117000.0,1.45212999]
[1754746716493,0.1734619,117010.0,117000.0,1.53758929]
[1754746716886,0.1734619,117010.0,117000.0,1.89838929]
[1754746717501,0.1734619,117010.0,117000.0,1.53758929]
[1754746719504,0.1599119,117010.0,117000.0,1.53758929]
[1754746720402,0.1599119,117010.0,117000.0,1.45212999]
[1754746720600,0.0894519,117010.0,117000.0,2.34026228]
[1754746720898,0.0894519,117010.0,117000.0,1.89838929]
[1754746721496,0.0894519,117010.0,117000.0,2.34026228]
[1754746721696,0.0894519,117010.0,117000.0,1.4565163]
[1754746721898,0.0894519,117010.0,117000.0,2.34026228]
[1754746722399,0.0894519,117010.0,117000.0,2.23284528]
[1754746724807,0.0894519,117010.0,117000.0,2.34051104]
[1754746725308,0.0894519,117010.0,117000.0,1.45676506]
[1754746725510,0.0894519,117010.0,117000.0,1.89863805]
[1754746733318,0.0894519,117010.0,117000.0,0.64876506]
[1754746733513,0.1368119,117010.0,117000.0,1.45648506]
[1754746733719,0.2077619,117010.0,117000.0,1.53755805]
[1754746733919,0.2077619,117010.0,117000.0,0.64437875]
[1754746734220,0.2077619,117010.0,117000.0,1.01014576]
[1754746734413,0.2077619,117010.0,117000.0,1.45201875]
[1754746734613,0.2077619,117010.0,117000.0,1.53747805]
[1754746734814,0.2077619,117010.0,117000.0,1.01014576]
[1754746735018,0.2077619,117010.0,117000.0,1.45201875]
[1754746738220,0.2077619,117010.0,117000.0,1.53747805]
[1754746739030,0.2077619,117010.0,117000.0,1.45201875]
[1754746740332,0.2077619,117010.0,117000.0,1.53747805]
[1754746741229,0.1754219,117010.0,117000.0,1.89827805]
[1754746741534,0.1397819,117010.0,117000.0,1.53747805]
[1754746742526,0.1397819,117010.0,117000.0,1.09560506]
[1754746742832,0.1397819,117010.0,117000.0,1.53747805]
[1754746743133,0.1397819,117010.0,117000.0,1.09560506]
[1754746743330,0.2077619,117010.0,117000.0,1.53747805]
[1754746743532,0.2077619,117010.0,117000.0,1.09560506]
[1754746743833,0.2077619,117010.0,117000.0,1.53747805]
[1754746744133,0.2077619,117010.0,117000.0,1.45201875]
[1754746744534,0.1616219,117010.0,117000.0,1.45201875]
[1754746744727,0.2077619,117010.0,117000.0,1.45201875]
[1754746746140,0.2077619,117010.0,117000.0,1.53747805]
[1754746746534,0.2077619,117010.0,117000.0,1.89827805]
[1754746746738,0.0894519,117010.0,117000.0,1.53747805]
[1754746746937,0.1239219,117010.0,117000.0,1.09560506]
[1754746747125,0.1755919,117010.0,117000.0,1.53747805]
[1754746747330,0.2088419,117010.0,117000.0,1.53747805]
[1754746747731,0.1755919,117010.0,117000.0,1.53747805]
[1754746747934,0.1618719,117010.0,117000.0,1.53747805]
[1754746750235,0.1618719,117010.0,117000.0,1.09560506]
[1754746750539,0.1755919,117010.0,117000.0,1.53747805]
[1754746751533,0.1395119,117010.0,117000.0,1.09560506]
[1754746751733,0.0894519,117010.0,117000.0,1.89827805]
[1754746752745,0.0894519,117010.0,117000.0,2.1191722]
[1754746754643,0.0894519,117010.0,117000.0,1.89825235]
[1754746755442,0.0894519,117010.0,117000.0,0.89825235]
[1754746755742,0.1141619,117010.0,117000.0,0.89825235]
[1754746757740,0.0894519,117010.0,117000.0,1.34009964]
[1754746758238,0.1141619,117010.0,117000.0,1.34009964]
[1754746760043,0.1141619,117010.0,117000.0,0.89825235]
[1754746762651,0.1141619,117010.0,117000.0,1.34009964]
[1754746762949,0.1141619,117010.0,117000.0,0.89825235]
[1754746763449,0.1141619,117010.0,117000.0,1.00593438]
[1754746763949,0.1141619,117010.0,117000.0,1.44778167]
[1754746765150,0.1141619,117010.0,117000.0,1.00593438]
[1754746765453,0.1141619,117010.0,117000.0,0.89825235]
[1754746768955,0.1141619,117010.0,117000.0,1.00593162]
[1754746771050,0.0894519,117010.0,117000.0,1.44777891]
[1754746771256,0.1141619,117010.0,117000.0,1.44777891]
[1754746771444,0.1141619,117010.0,117000.0,1.34009964]
[1754746776762,0.1141619,117010.0,117000.0,1.45046151]
[1754746777262,0.0894519,117010.0,117000.0,1.45046151]
[1754746777561,0.0894519,117010.0,117000.0,1.55810854]
[1754746778653,0.0894519,117010.0,117000.0,1.44754073]
[1754746780466,0.1135519,117010.0,117000.0,1.44754073]
[1754746783768,0.0281,117010.0,117000.0,1.44754073]
[1754746784168,0.113552,117010.0,117000.0,1.44754073]
[1754746784467,0.089452,117010.0,117000.0,1.44754073]
[1754746784969,0.089452,117010.0,117000.0,1.3398937]
[1754746785269,0.113552,117010.0,117000.0,1.3398937]
[1754746787165,0.0281,117010.0,117000.0,1.3398937]
[1754746787367,0.0281,117010.0,117000.0,1.44748557]
[1754746787557,0.004,117010.0,117000.0,1.44748557]
[1754746787768,0.004,117010.0,117000.0,1.3398937]
[1754746787966,0.0281,117010.0,117000.0,1.3398937]
[1754746792672,0.004,117010.0,117000.0,1.3398937]
[1754746793874,0.0281,117010.0,117000.0,1.3398937]
[1754746794970,0.0281,117010.0,117000.0,1.49380338]
[1754746798177,0.0281,117010.0,117000.0,1.3398937]
[1754746799774,0.0251,117010.0,117000.0,1.3428937]
[1754746799969,0.2070421,117010.0,117000.0,1.69832362]
[1754746800470,0.2070421,117010.0,117000.0,2.14006794]
[1754746800676,0.2070421,117010.0,117000.0,2.25066338]
[1754746808081,0.2070421,117010.0,117000.0,1.91890202]
[1754746808281,0.2070421,117010.0,117000.0,1.91882202]
[1754746809899,0.2070421,117010.0,117000.0,2.02643137]
[1754746810781,0.2064821,117010.0,117000.0,2.02643137]
[1754746812686,0.1105521,117010.0,117000.0,2.35779273]
[1754746812873,0.1589121,117010.0,117000.0,2.35779273]
[1754746813079,0.1105521,117010.0,117000.0,2.35776463]
[1754746813984,0.1909921,117010.0,117000.0,2.35776463]
[1754746814478,0.2049021,117010.0,117000.0,2.35776463]
[1754746815077,0.2049021,117010.0,117000.0,2.25018338]
[1754746816576,0.2049021,117010.0,117000.0,2.24986338]
[1754746817480,0.2049021,117010.0,117000.0,1.91850202]
[1754746817884,0.2049021,117010.0,117000.0,1.2557793]
[1754746818083,0.2049021,117010.0,117000.0,1.91850202]
[1754746819389,0.2049021,117010.0,117000.0,1.83304272]
[1754746820090,0.2049021,117010.0,117000.0,1.91850212]
[1754746820388,0.2049021,117010.0,117000.0,1.83304272]
[1754746820588,0.2049021,117010.0,117000.0,1.94058632]
[1754746820990,0.2049021,117010.0,117000.0,1.83304272]
[1754746821182,0.2049021,117010.0,117000.0,2.02604469]
[1754746822887,0.2049021,117010.0,117000.0,1.27786257]
[1754746823292,0.2049021,117010.0,117000.0,1.94058529]
[1754746823592,0.2049021,117010.0,117000.0,2.02604469]
[1754746823892,0.2049021,117010.0,117000.0,1.91850212]
[1754746824897,0.1105521,117010.0,117000.0,2.24986348]
[1754746825284,0.0864521,117010.0,117000.0,2.24986348]
[1754746826698,0.1102721,117010.0,117000.0,2.13929972]
[1754746827997,0.1102721,117010.0,117000.0,1.2557794]
[1754746828394,0.1102721,117010.0,117000.0,2.13929972]
[1754746833202,0.0864521,117010.0,117000.0,2.13929972]
[1754746833400,0.1102721,117010.0,117000.0,2.13929972]
[1754746834097,0.0864521,117010.0,117000.0,2.13929972]
[1754746834601,0.1102721,117010.0,117000.0,2.2932094]
[1754746836198,0.1102721,117010.0,117000.0,2.13929972]
[1754746838503,0.1102721,117010.0,117000.0,2.2932094]
[1754746845706,0.02482,117010.0,117000.0,2.2932094]
[1754746847305,0.1102721,117010.0,117000.0,2.2932094]
[1754746848002,0.02482,117010.0,117000.0,2.2932094]
[1754746848611,0.1102721,117010.0,117000.0,2.40361944]
[1754746849103,0.02482,117010.0,117000.0,2.24970976]
[1754746849507,0.1102721,117010.0,117000.0,2.24970976]
[1754746849712,0.1102721,117010.0,117000.0,2.35732748]
[1754746849909,0.02482,117010.0,117000.0,2.35732748]
[1754746850709,0.1102721,117010.0,117000.0,2.35732748]
[1754746851006,0.02482,117010.0,117000.0,2.35732748]
[1754746851202,0.0251,117010.0,117000.0,2.24970976]
[1754746851607,0.0251,117010.0,117000.0,2.35732748]
[1754746851906,0.1507098,117030.0,117020.0,0.01246]
[1754746851907,0.1035387,117030.0,117020.0,0.01246]
[1754746852097,0.0181012,117030.0,117020.0,2.62402516]
[1754746852703,0.1035388,117030.0,117020.0,2.07172979]
[1754746852901,0.0181012,117030.0,117020.0,2.07172979]
[1754746853103,0.0181012,117030.0,117020.0,2.17930348]
[1754746853506,0.0201012,117030.0,117020.0,2.18030348]
[1754746853707,0.0221012,117030.0,117020.0,2.18030348]
[1754746853908,0.1316387,117030.0,117020.0,2.07272979]
[1754746854112,0.1640387,117030.0,117020.0,2.07272979]
[1754746854312,0.2261087,117030.0,117020.0,2.07272979]
[1754746854815,0.2241087,117030.0,117020.0,2.07472979]
[1754746855013,0.2092787,117030.0,117020.0,2.07672979]
[1754746856516,0.1286387,117030.0,117020.0,2.07672979]
[1754746856815,0.0432012,117030.0,117020.0,2.07672979]
[1754746857816,0.128639,117030.0,117020.0,2.07672979]
[1754746858010,0.0432012,117030.0,117020.0,2.07672979]
[1754746858215,0.128639,117030.0,117020.0,2.07672979]
[1754746858409,0.0432012,117030.0,117020.0,2.07672979]
[1754746858910,0.0191012,117030.0,117020.0,2.07672979]
[1754746859112,0.0191012,117030.0,117020.0,2.62582213]
[1754746859410,0.0191012,117030.0,117020.0,2.18418714]
[1754746860611,0.0191012,117030.0,117020.0,2.07672979]
[1754746860816,0.0432012,117030.0,117020.0,2.07672979]
[1754746861112,0.0432012,117030.0,117020.0,2.23063947]
[1754746861613,0.0432012,117030.0,117020.0,2.3380588]
[1754746861914,0.0432012,117030.0,117020.0,3.36566912]
[1754746863915,0.0432012,117030.0,117020.0,3.50756912]
[1754746866821,0.0432012,117030.0,117020.0,3.40014979]
[1754746872626,0.0432012,117030.0,117020.0,3.95208837]
[1754746875217,0.0774312,117030.0,117020.0,3.95208837]
[1754746875526,0.0774312,117030.0,117020.0,4.10599805]
[1754746879322,0.0432012,117030.0,117020.0,4.10599805]
[1754746879528,0.0432012,117030.0,117020.0,3.95208837]
[1754746883630,0.0432012,117030.0,117020.0,4.10599805]
[1754746884130,0.0432012,117030.0,117020.0,2.82231686]
[1754746884131,0.2269908,117030.0,117020.0,2.82231686]
[1754746884332,0.2269908,117030.0,117020.0,3.62351686]
[1754746885737,0.2269908,117030.0,117020.0,2.44199686]
[1754746886634,0.2269908,117030.0,117020.0,2.28808718]
[1754746887133,0.2269908,117030.0,117020.0,1.92728718]
[1754746890441,0.2269908,117030.0,117020.0,2.25847837]
[1754746890739,0.2269908,117030.0,117020.0,2.26626837]
[1754746893040,0.02816,117040.0,117030.0,0.00779]
[1754746893346,0.1135923,117040.0,117030.0,1.56770714]
[1754746894137,0.1806123,117040.0,117030.0,1.23651595]
[1754746894345,0.1965423,117040.0,117030.0,1.23751595]
[1754746894539,0.2129423,117040.0,117030.0,1.30582663]
[1754746896646,0.2093423,117040.0,117030.0,1.30582663]
[1754746896943,0.2093423,117040.0,117030.0,1.19818266]
[1754746897245,0.2093423,117040.0,117030.0,0.53580028]
[1754746897546,0.2093423,117040.0,117030.0,1.19818266]
[1754746901747,0.2077623,117040.0,117030.0,1.29876177]
[1754746902048,0.2077623,117040.0,117030.0,1.23045109]
[1754746902647,0.2077623,117040.0,117030.0,1.56164228]
[1754746903949,0.2077623,117040.0,117030.0,1.92244228]
[1754746904650,0.2077623,117040.0,117030.0,1.7017336]
[1754746908245,0.2077623,117040.0,117030.0,1.7095236]
[1754746908548,0.1109923,117040.0,117030.0,1.7095236]
[1754746908754,0.1755923,117040.0,117030.0,1.7095236]
[1754746909054,0.2054023,117040.0,117030.0,1.7095236]
[1754746909348,0.2054023,117040.0,117030.0,1.81717145]
[1754746911953,0.1907823,117040.0,117030.0,1.81717145]
[1754746913057,0.2054023,117040.0,117030.0,1.81717145]
[1754746913648,0.2054023,117040.0,117030.0,1.7095236]
[1754746916149,0.2054023,117040.0,117030.0,0.9070499]
[1754746916350,0.2054023,117040.0,117030.0,1.3487236]
[1754746916561,0.2054023,117040.0,117030.0,1.7095236]
[1754746917061,0.2054023,117040.0,117030.0,1.3487236]
[1754746918148,0.2054023,117040.0,117030.0,1.7095236]
[1754746918550,0.2054023,117040.0,117030.0,1.3487236]
[1754746918955,0.2054023,117040.0,117030.0,1.41826449]
[1754746920062,0.2054023,117040.0,117030.0,0.61790449]
[1754746920255,0.2054023,117040.0,117030.0,1.41750449]
[1754746921265,0.2054023,117040.0,117030.0,0.01346]
[1754746921562,0.2054023,117040.0,117030.0,1.34980776]
[1754746921862,0.5662023,117040.0,117030.0,1.2421537]
[1754746922163,0.5662023,117040.0,117030.0,0.001]
[1754746922356,0.5662023,117040.0,117030.0,0.8004]
[1754746922556,0.5662023,117040.0,117030.0,0.90805406]
[1754746923051,0.5662023,117040.0,117030.0,1.34972776]
[1754746924658,0.89752837,117040.0,117030.0,1.23938013]
[1754746925460,0.89752837,117040.0,117030.0,1.13172607]
[1754746927464,0.89752837,117040.0,117030.0,1.13156607]
[1754746928064,0.89752837,117040.0,117030.0,0.33232607]
[1754746928259,0.89752837,117040.0,117030.0,1.13148607]
[1754746928460,0.5662023,117040.0,117030.0,1.13148607]
[1754746928660,0.89752837,117040.0,117030.0,1.13148607]
[1754746929364,0.89752837,117040.0,117030.0,0.34478607]
[1754746929562,0.89752837,117040.0,117030.0,1.14394607]
[1754746930763,0.89752837,117040.0,117030.0,0.34478607]
[1754746931063,1.39974244,117040.0,117030.0,0.80004]
[1754746932257,1.39974244,117040.0,117030.0,0.001]
[1754746932462,1.39974244,117040.0,117030.0,0.80004]
[1754746933167,1.39974244,117040.0,117030.0,1.13136607]
[1754746933664,0.0854399,117030.0,117020.0,0.10765406]
[1754746933869,0.2051272,117020.0,117010.0,0.34378607]
[1754746934167,0.2245377,117020.0,117010.0,1.25036013]
[1754746935167,0.2245377,117020.0,117010.0,1.15049607]
[1754746935369,0.2245377,117020.0,117010.0,0.81917]
[1754746935757,0.2245377,117020.0,117010.0,1.15049607]
[1754746936163,0.2245377,117020.0,117010.0,1.15349607]
[1754746936467,0.2255377,117020.0,117010.0,1.15449607]
[1754746936860,0.2255377,117020.0,117010.0,0.82017]
[1754746937061,0.2255377,117020.0,117010.0,1.15149607]
[1754746938969,0.2255377,117020.0,117010.0,0.82017]
[1754746939172,0.2255377,117020.0,117010.0,1.15149607]
[1754746942774,0.2255377,117020.0,117010.0,1.48282214]
[1754746943874,0.2255377,117020.0,117010.0,0.68390214]
[1754746944178,0.2255377,117020.0,117010.0,1.15117607]
[1754746944874,0.2255377,117020.0,117010.0,1.48250214]
[1754746945072,0.2255377,117020.0,117010.0,1.23663037]
[1754746946377,0.2255377,117020.0,117010.0,1.56795644]
[1754746948375,0.2255377,117020.0,117010.0,1.48250214]
[1754746948681,0.2255377,117020.0,117010.0,1.5901562]
[1754746949077,0.2255377,117020.0,117010.0,1.48250214]
[1754746949378,0.2255377,117020.0,117010.0,1.56795634]
[1754746949571,0.2255377,117020.0,117010.0,2.0364104]
[1754746949772,0.2105777,117020.0,117010.0,2.0364104]
[1754746949968,0.1525377,117020.0,117010.0,1.1445662]
[1754746950179,0.2255377,117020.0,117010.0,1.9508362]
[1754746950476,0.1058577,117020.0,117010.0,1.92863634]
[1754746951675,0.1058577,117020.0,117010.0,2.0362904]
[1754746954974,0.0980677,117020.0,117010.0,2.36761647]
[1754746955283,0.0980677,117020.0,117010.0,2.25996241]
[1754746956683,0.0980677,117020.0,117010.0,2.36747461]
[1754746957987,0.0980677,117020.0,117010.0,2.25996241]
[1754746959186,0.2597308,117030.0,117010.0,2.50853011]
[1754746959484,0.2597308,117030.0,117020.0,1.44022511]
[1754746959885,0.1742846,117030.0,117020.0,1.56468483]
[1754746960690,0.1742846,117030.0,117020.0,1.01232387]
[1754746961387,0.0888399,117030.0,117020.0,1.01232387]
[1754746961982,0.0898399,117030.0,117020.0,1.01232387]
[1754746962686,0.0908399,117030.0,117020.0,1.01532387]
[1754746962884,0.0898399,117030.0,117020.0,1.01632387]
[1754746964182,0.1147899,117030.0,117020.0,1.01632387]
[1754746964382,0.1147899,117030.0,117020.0,0.9088371]
[1754746965082,0.1147899,117030.0,117020.0,0.9078371]
[1754746965292,0.1147899,117030.0,117020.0,0.9098371]
[1754746967189,0.1147899,117030.0,117020.0,1.0172114]
[1754746970889,0.1147899,117030.0,117020.0,0.9098371]
[1754746971093,0.0044,117030.0,117020.0,0.9098371]
[1754746971593,0.0044,117030.0,117020.0,1.01720137]
[1754746972394,0.0044,117030.0,117020.0,1.15910137]
[1754746972692,0.0044,117030.0,117020.0,1.0517371]
[1754746973187,0.0044,117030.0,117020.0,1.65910602]
[1754746974991,0.00163148,117030.0,117020.0,1.65910602]
[1754746975188,0.02441557,117050.0,117040.0,0.2576121]
[1754746975393,0.10984057,117050.0,117040.0,2.42370221]
[1754746976393,0.14486057,117050.0,117040.0,2.42370221]
[1754746976790,0.19289057,117050.0,117040.0,2.42370221]
[1754746977596,0.19189057,117050.0,117040.0,2.42370221]
[1754746978192,0.15787057,117050.0,117040.0,2.42370221]
[1754746978396,0.15887057,117050.0,117040.0,2.42570221]
[1754746979297,0.19189057,117050.0,117040.0,2.56760221]
[1754746979791,0.19189057,117050.0,117040.0,2.46022821]
[1754746979993,0.20544057,117050.0,117040.0,2.46022821]
[1754746980298,0.20544057,117050.0,117040.0,2.01861096]
[1754746980797,0.20544057,117050.0,117040.0,2.23936997]
[1754746980997,0.20544057,117050.0,117040.0,2.34679146]
[1754746985200,0.20544057,117050.0,117040.0,2.23936997]
[1754746985697,0.20544057,117050.0,117040.0,2.5705581]
[1754746990804,0.19189057,117050.0,117040.0,2.5705581]
[1754746990998,0.15887057,117050.0,117040.0,2.5705581]
[1754746991304,0.11084057,117050.0,117040.0,2.5705581]
[1754746993604,0.11084057,117050.0,117040.0,2.67797959]
[1754746993805,0.11084057,117050.0,117040.0,2.53607959]
[1754746995100,0.086425,117050.0,117040.0,2.53607959]
[1754746996006,0.109015,117050.0,117040.0,2.53607959]
[1754746996706,0.109015,117050.0,117040.0,2.4286581]
[1754746996908,0.086425,117050.0,117040.0,2.4286581]
[1754746997304,0.109015,117050.0,117040.0,2.4286581]
[1754747001015,0.109015,117050.0,117040.0,2.53620866]
[1754747002707,0.109015,117050.0,117040.0,2.4286581]
[1754747002906,0.109015,117050.0,117040.0,2.53624223]
[1754747004116,0.109015,117050.0,117040.0,2.4286581]
[1754747006418,0.109015,117050.0,117040.0,2.58256778]
[1754747009022,0.109015,117050.0,117040.0,2.72446778]
[1754747009227,0.109015,117050.0,117040.0,2.58256778]
[1754747011230,0.134935,117050.0,117040.0,2.58256778]
[1754747011430,0.204155,117050.0,117040.0,2.58256778]
[1754747011930,0.204155,117050.0,117040.0,2.4286581]
[1754747015034,0.189845,117050.0,117040.0,2.4286581]
[1754747015538,0.157845,117050.0,117040.0,2.4286581]
[1754747015743,0.109015,117050.0,117040.0,2.4286581]
[1754747015942,0.109015,117050.0,117040.0,2.53632317]
[1754747016229,0.109015,117050.0,117040.0,2.4286581]
[1754747017233,0.109015,117050.0,117040.0,2.7894581]
[1754747020035,0.001,117050.0,117040.0,2.7894581]
[1754747020737,0.001,117050.0,117040.0,2.94336778]
[1754747021741,0.02444,117050.0,117040.0,2.94336778]
[1754747022042,0.1098658,117050.0,117040.0,2.94336778]
[1754747022838,0.001,117050.0,117040.0,2.94336778]
[1754747023042,0.4494155,117060.0,117050.0,0.0868058]
[1754747023243,0.4640955,117060.0,117050.0,1.10998206]
[1754747023543,0.4640955,117060.0,117050.0,1.21763685]